Cogmind - Beta 15 @@@ ROGUE MODE // 2025.05.19 @ 22:18:42 Player: obl-vn Result: Destroyed by S-27 Virus with Autogun Performance ------------- Evolutions (3) 1500 Regions Visited (12) 2400 Robots Destroyed (107) 535 Value Destroyed (4527) 4527 Prototype IDs (27) 540 Alien Tech Used (0) 0 Bonus (2677) 2677 TOTAL SCORE: 12179 Bonus ------- High Alert Combat Kills 511 Follower Combat Kills 266 Entered Garrisons 600 Used RIF Installer 1000 Aligned with FarCom 300 Cogmind --------- Core Integrity 0/700 Matter 285/300 Energy 100/100 System Corruption 45% Temperature Cool (0) Movement Core (50) Location -7/Garrison Parts ------- > --- POWER (2) -------- (None) > --- PROPULSION (4) --- (None) > --- UTILITY (5) ------ Improved Signal Interpreter > --- WEAPON (2) ------- (None) > --- INVENTORY (5) ---- Particle Charger Latent Energy Streamer Improved Datajack Remote Datajack Peak State ------------ > --- POWER ------------ Heavy Deuterium Engine Antimatter Reactor > --- PROPULSION ------- Heavy Treads Heavy Treads > --- UTILITY ---------- Huge Storage Unit Advanced Targeting Computer Particle Charger Improved Medium Armor Plating Improved Medium Armor Plating > --- WEAPON ----------- Latent Energy Streamer Heavy Assault Rifle > --- INVENTORY -------- Light Nuclear Core Light Nuclear Core Advanced ECM Suite Improved Medium Armor Plating System Shield Relay Coupler [NC] Relay Coupler [Grunt] High-powered Tractor Beam Field Laser Heavy Laser EM Pulse Cannon EM Pulse Cannon EM Pulse Cannon EM Pulse Cannon EM Pulse Cannon Heavy Particle Cannon Improved Datajack Improved Datajack Remote Datajack Field Lobotomy Kit [Rating: 69] Favorites ----------- Power Heavy Deuterium Engine Engine Heavy Deuterium Engine Power Core Light Nuclear Core Reactor Antimatter Reactor Propulsion Improved Treads Treads Improved Treads Leg Potential Leg Flight Unit VTOL Module Utility Large Storage Unit Device Improved Heat Sink Storage Large Storage Unit Processor Advanced Targeting Computer Hackware Relay Coupler [NC] Protection Light Armor Plating Weapon Heavy Particle Cannon Energy Gun Precision Beam Rifle Energy Cannon Heavy Particle Cannon Ballistic Gun Autogun Launcher Grenade Launcher Special Weapon Remote Datajack Special Melee Weapon Improved Datajack Build | -11 -10 -10 -10 -9 -8 -8 -8 -8 -7 -7 -7 -7 ------- Run | Yrd Mat Min Exi Min Mat Gar Mat Gar Fac Was Fac Gar Slots Evolved 6 | . . . . . 4 . . . 2 . . . Power 1 | . . . . . . . . . 1 . . . Propulsion 2 | . . . . . 2 . . . . . . . Utility 3 | . . . . . 2 . . . 1 . . . Weapon . | . . . . . . . . . . . . . Parts Attached 82 | 8 8 . 4 1 17 4 6 7 6 4 16 1 Power 10 | 1 . . . 1 2 . 2 1 . 2 1 . Engine 7 | 1 . . . 1 2 . 2 1 . . . . Core 1 | . . . . . . . . . . . 1 . Reactor 2 | . . . . . . . . . . 2 . . Propulsion 20 | 2 2 . 4 . 2 . 2 3 . 2 3 . Treads 16 | 2 2 . 2 . 2 . 2 3 . 2 1 . Leg 2 | . . . 2 . . . . . . . . . Wheel . | . . . . . . . . . . . . . Hover . | . . . . . . . . . . . . . Flight 2 | . . . . . . . . . . . 2 . Utility 26 | 3 3 . . . 7 . . 2 2 . 9 . Device 7 | 2 1 . . . 1 . . 1 . . 2 . Storage 3 | 1 1 . . . . . . . . . 1 . Processor 4 | . . . . . 3 . . . . . 1 . Hackware 4 | . . . . . . . . . 2 . 2 . Protection 8 | . 1 . . . 3 . . 1 . . 3 . Artifact . | . . . . . . . . . . . . . Weapon 26 | 2 3 . . . 6 4 2 1 4 . 3 1 Energy Gun 6 | 1 . . . . 4 . . . . . 1 . Energy Cannon 7 | . . . . . . 2 2 1 . . 2 . Ballistic Gun 7 | 1 3 . . . 2 . . . 1 . . . Ballistic Cannon . | . . . . . . . . . . . . . Launcher 2 | . . . . . . 2 . . . . . . Special Weapon 2 | . . . . . . . . . 1 . . 1 Impact Weapon . | . . . . . . . . . . . . . Slashing Weapon . | . . . . . . . . . . . . . Piercing Weapon . | . . . . . . . . . . . . . Special Melee Weapon 2 | . . . . . . . . . 2 . . . Unidentified Prototypes 4 | . . . . . 3 . 1 . . . . . Corrupted Parts 2 | . . . . . . . . 1 . . 1 . System Corruption 2 | . . . . . . . . 1 . . 1 . Parts Lost 20 | . 3 . . . . . . 6 1 . 5 5 Power 2 | . . . . . . . . 1 . . 1 . Propulsion 5 | . 1 . . . . . . 2 . . . 2 Utility 9 | . 1 . . . . . . 1 1 . 3 3 Weapon 4 | . 1 . . . . . . 2 . . 1 . Highest Loss Streak 4 | . 2 . . . . . . 4 1 . 3 4 To Critical Strikes . | . . . . . . . . . . . . . Average Backups 14 | 4 12 15 14 15 14 14 14 13 14 14 20 3 Power 1 | 1 1 1 1 1 2 2 1 . . . 1 . Propulsion 1 | 1 3 4 3 2 1 2 2 1 . . . . Utility 4 | . 4 4 4 4 1 3 4 5 8 7 6 1 Weapon 4 | . 2 5 5 6 5 3 3 3 3 4 8 1 Tool/Special . | . . . . . . . . . . . . . Unused Backups 37 | 1 13 . . . 7 1 3 1 1 1 9 . Power 13 | 1 4 . . . 4 . 2 . . . 2 . Propulsion 3 | . 2 . . . . . 1 . . . . . Utility 11 | . 4 . . . . . . 1 1 1 4 . Weapon 9 | . 3 . . . 3 . . . . . 3 . Tool/Special 1 | . . . . . . 1 . . . . . . Average Slot Usage (%) 92 | . 96 100 100 100 99 100 99 93 83 80 76 44 Engine 9 | . 14 14 14 14 9 9 8 9 7 7 6 . Treads 28 | . 24 28 26 28 35 36 36 32 29 24 14 . Device 6 | . 7 . . 3 6 9 9 6 5 3 5 . Storage 9 | . 14 14 14 14 9 9 9 9 7 7 6 . Processor 7 | . . . . . 10 9 9 9 7 7 8 14 Protection 8 | . 6 14 14 10 9 9 9 8 7 7 9 . Energy Gun 4 | . 6 . . . 13 3 . . . . . . Energy Cannon 5 | . . . . . . 7 12 11 13 7 6 . Ballistic Gun 6 | . 21 28 28 28 4 . . . . . 1 . Launcher 2 | . . . . . . 7 5 5 . . . . Peak Build Rating 69 | 9 11 11 30 16 31 31 35 40 37 61 69 26 Average Rating 29 | 6 8 11 13 15 28 29 30 31 35 43 61 19 On Entrance 22 | . 8 11 11 15 16 31 29 35 29 34 61 17 Naked Turns . | . . . . . . . . . . . . . Heaviest Build 137 | 15 34 34 34 36 42 46 47 58 59 72 137 8 Greatest Support 140 | 40 40 40 60 46 92 92 92 91 85 140 140 8 Greatest Overweight (x) 2 | . 1 . . . . . . 1 . 1 1 2 Average Overweight (x) . | . . . . . . . . . . . . . Largest Inventory Capacity 25 | 8 15 15 15 15 15 15 15 15 15 15 25 5 Average Capacity 15 | 7 14 15 15 15 15 15 15 15 15 15 23 5 Most Carried 25 | 8 15 15 15 15 15 15 15 15 15 15 25 5 Average Carried 14 | 4 12 15 14 15 14 14 14 14 14 14 20 3 Final Capacity 15 | 8 15 15 15 15 15 15 15 15 15 15 5 5 Final Carried 15 | 8 15 15 15 15 15 14 15 15 15 13 5 4 Class Distribution -------------------- 82% | Mutant 12% | Scavenger-Mutant 4% | Bothacker-Mutant Dominant Class ---------------- Mutant | -10/Materials Mutant | -10/Mines Mutant | -10/Exiles Mutant | -9/Mines Mutant | -8/Materials Mutant | -8/Garrison Mutant | -8/Materials Mutant | -8/Garrison Bothacker-Mutant | -7/Factory Mutant | -7/Waste Scavenger-Mutant | -7/Factory Mutant | -7/Garrison Resources | -11 -10 -10 -10 -9 -8 -8 -8 -8 -7 -7 -7 -7 ----------- Run | Yrd Mat Min Exi Min Mat Gar Mat Gar Fac Was Fac Gar Matter Collected 3076 | 307 430 44 . 106 540 223 218 451 98 128 280 251 Remotely . | . . . . . . . . . . . . . Salvage Created 4160 | 247 434 30 . 106 498 342 247 908 229 600 519 . Parts 224 | 24 28 3 . 8 27 29 12 47 11 9 26 . Haulers Intercepted 5 | . 1 . . . 4 . . . . . . . Recyclers Shooed 3 | 1 1 . . . 1 . . . . . . . Parts Field Recycled . | . . . . . . . . . . . . . Retrieved Matter . | . . . . . . . . . . . . . Parts Self-Destructed . | . . . . . . . . . . . . . Prevented . | . . . . . . . . . . . . . Kills | -11 -10 -10 -10 -9 -8 -8 -8 -8 -7 -7 -7 -7 ------- Run | Yrd Mat Min Exi Min Mat Gar Mat Gar Fac Was Fac Gar Combat Hostiles Destroyed 80 | . 10 2 . 2 3 16 8 23 4 2 10 . Guns 22 | . 10 2 . 2 3 . . . 1 . 4 . Cannons 22 | . . . . . . 2 3 10 3 1 3 . AOE 31 | . . . . . . 13 5 11 . . 2 . Classes Destroyed 16 | 3 4 . . 1 3 . 1 2 . 1 1 . Worker 5 | 1 2 . . . . . . . . . 2 . Builder 4 | . . . . . 1 . 2 . . . 1 . Tunneler 7 | 6 . . . 1 . . . . . . . . Hauler 5 | . 1 . . . 4 . . . . . . . Recycler 3 | 1 . . . . 1 . . . . . 1 . Mechanic 1 | . . . . . 1 . . . . . . . Operator 1 | . 1 . . . . . . . . . . . Watcher 1 | . . . . . . . . . . . 1 . Swarmer 27 | . 3 2 . . . 9 2 7 . . 4 . Grunt 31 | . 7 . . 1 . 5 3 9 3 . 3 . Brawler 3 | . . . . . . . . 2 1 . . . Duelist 3 | . . . . 1 . . 1 1 . . . . Sentry 9 | . . . . . 3 2 1 1 . . 2 . Hunter 2 | . . . . . . . 1 1 . . . . Programmer 3 | . . . . . . . . 2 . . 1 . Compactor 2 | . . . . . . . . . . 2 . . Best Kill Streak 8 | 2 6 2 . 2 3 4 6 7 3 1 8 . Combat Bots Only 7 | . 6 2 . 2 1 4 4 7 3 1 5 . Max Kills in Single Turn 4 | 1 1 1 . 1 1 3 2 4 1 1 3 . Gunslinging . | . . . . . . . . . . . . . Exploded 4 | . . . . . . 3 1 4 . . 2 . Melee . | . . . . . . . . . . . . . Uniques/NPCs Destroyed . | . . . . . . . . . . . . . Combat | -11 -10 -10 -10 -9 -8 -8 -8 -8 -7 -7 -7 -7 -------- Run | Yrd Mat Min Exi Min Mat Gar Mat Gar Fac Was Fac Gar Hostile Shots Fired 572 | . 55 14 . 11 18 15 48 64 15 . 264 68 Missed 156 | . 11 3 . 1 4 4 11 14 3 . 87 18 Hits 416 | . 44 11 . 10 14 11 37 50 12 . 177 50 Melee 7 | . . . . 4 . . . 2 1 . . . Projectile 409 | . 44 11 . 6 14 11 37 48 11 . 177 50 Critical Strikes 7 | . . . . . 1 . . 1 1 . 1 3 Damage Taken 5564 | . 459 79 . 193 216 315 564 883 191 . 1884 780 Core 1072 | . 72 27 . 89 47 50 51 33 . . 112 591 Absorbed by Shields . | . . . . . . . . . . . . . Core Remaining (%) 63 | 100 . . . 24 . . . 67 . . . . Volleys Fired 422 | 30 41 7 . 9 30 59 27 79 15 71 49 5 Largest 2 | 2 2 2 . 2 2 2 2 2 2 1 2 1 Hottest 150 | 70 70 46 . 46 106 105 150 150 138 75 144 . Shots Fired 579 | 39 82 14 . 18 62 62 37 102 25 70 63 5 Gun 239 | 39 82 14 . 18 62 3 . . 1 . 20 . Cannon 278 | . . . . . . 42 27 88 22 64 35 . Launcher 49 | . . . . . . 17 10 14 . . 8 . Special 13 | . . . . . . . . . 2 6 . 5 Kinetic 168 | 9 59 14 . 18 50 . . . 1 . 17 . Thermal 290 | 30 23 . . . 7 39 27 77 9 64 14 . Explosive 49 | . . . . . . 17 10 14 . . 8 . Electromagnetic 59 | . . . . . 5 6 . 11 13 . 24 . Robot Hit Streak 18 | 12 14 2 . 6 18 13 14 14 13 10 7 5 Robot Miss Streak 6 | 2 6 4 . 4 2 2 2 3 2 3 4 1 Penetration Max . | . . . . . . . . . . . . . Secondary Targets 3 | . 1 1 . 1 . . . . . . . . Max Gunslinging Chain 1 | . 1 1 . 1 . . . . . . . . Shots Hit Robots 357 | 29 53 6 . 11 50 20 20 50 22 56 31 9 Core Hits 176 | 9 22 2 . 5 16 25 17 41 7 6 26 . Critical Kills 1 | . . . . . . . . . . 1 . . Critical Parts Destroyed 1 | . 1 . . . . . . . . . . . Critical Strikes 6 | . 5 . . . . . . . . 1 . . Burn 4 | . 4 . . . . . . . . . . . Meltdown 1 | . . . . . . . . . . 1 . . Destroy 1 | . 1 . . . . . . . . . . . Melee Attacks 13 | . . . . . . . . . 3 . . 10 Impact . | . . . . . . . . . . . . . Slashing . | . . . . . . . . . . . . . Piercing . | . . . . . . . . . . . . . Sneak Attacks 2 | . . . . . . . . . 1 . . 1 Combat Hostiles . | . . . . . . . . . . . . . Follow-up Attacks . | . . . . . . . . . . . . . Damage Inflicted 9692 | 365 744 96 . 165 764 1202 957 2185 444 1425 1345 . Guns 2372 | 365 744 96 . 165 764 15 . . 16 . 207 . Cannons 4347 | . . . . . . 404 470 1223 428 1425 397 . Explosions 2973 | . . . . . . 783 487 962 . . 741 . Melee . | . . . . . . . . . . . . . Ramming . | . . . . . . . . . . . . . Kinetic 1617 | 66 494 96 . 165 593 . . . 16 . 187 . Thermal 4247 | 299 250 . . . 101 346 470 1074 175 1425 107 . Explosive 2126 | . . . . . . 736 487 622 . . 281 . Electromagnetic 1702 | . . . . . 70 120 . 489 253 . 770 . Impact . | . . . . . . . . . . . . . Slashing . | . . . . . . . . . . . . . Piercing . | . . . . . . . . . . . . . Highest Corruption 45 | . . . . . 1 1 1 5 5 37 45 45 Average Corruption 10 | . . . . . 1 1 1 2 5 22 39 45 Corruption Purged . | . . . . . . . . . . . . . Corruption Blocked . | . . . . . . . . . . . . . Effects 148 | . . . . . 16 10 5 18 1 18 64 16 Message Errors 34 | . . . . . 2 2 1 4 . 2 17 6 Matter Fused 26 | . . . . . 2 2 3 5 . 4 9 1 Heat Flow Errors 24 | . . . . . 5 2 1 2 . 3 8 3 Energy Discharges 13 | . . . . . 2 1 . 1 . 1 7 1 Parts Rejected 4 | . . . . . 1 . . 2 . 1 . . Parts Fused 1 | . . . . . 1 . . . . . . . Data Loss (minor) 14 | . . . . . 1 3 . 2 1 1 5 1 Data Loss (major) 6 | . . . . . . . . 1 . . 4 1 Misfires 4 | . . . . . 2 . . . . 1 1 . Alerts 4 | . . . . . . . . . . 2 2 . Misdirections 7 | . . . . . . . . . . 1 3 3 Weapon Failures 11 | . . . . . . . . 1 . 2 8 . Overload Shots . | . . . . . . . . . . . . . Overflow Damage 195 | . . . . . . 35 . 96 1 . 63 . Projectiles 150 | . . . . . . 30 . 71 1 . 48 . Explosions 45 | . . . . . . 5 . 25 . . 15 . Melee . | . . . . . . . . . . . . . Knockbacks . | . . . . . . . . . . . . . Impact . | . . . . . . . . . . . . . Kinetic . | . . . . . . . . . . . . . Secondary . | . . . . . . . . . . . . . Self-Inflicted Damage 161 | . . . . . . 44 . 85 . . 32 . Shots 5 | . . . . . . 1 . 3 . . 1 . Rammed . | . . . . . . . . . . . . . Targets Rammed . | . . . . . . . . . . . . . Kicked . | . . . . . . . . . . . . . Crushed . | . . . . . . . . . . . . . Highest Temperature 580 | 60 231 31 . 52 249 257 273 350 363 395 580 258 Average Temperature 109 | 22 67 15 . 21 50 55 100 84 182 133 199 110 Received Heat Transfer 1239 | . 198 . . 36 72 54 153 279 117 . 258 72 Effects 25 | . . . . . 1 . . 1 1 2 20 . Shutdowns 2 | . . . . . . . . . . . 2 . Energy Bleed 2 | . . . . . . . . . 1 1 . . Interference 8 | . . . . . 1 . . 1 . 1 5 . Matter Decay 1 | . . . . . . . . . . . 1 . Short Circuit 4 | . . . . . . . . . . . 4 . Damage (major) 8 | . . . . . . . . . . . 8 . Siege Activations . | . . . . . . . . . . . . . Martial Activations . | . . . . . . . . . . . . . Shielding Activations . | . . . . . . . . . . . . . Robots Disrupted . | . . . . . . . . . . . . . Combat Hostiles . | . . . . . . . . . . . . . Robots Corrupted 4 | . . . . . . 1 . 2 . . 1 . Combat Hostiles 4 | . . . . . . 1 . 2 . . 1 . Parts Fried 8 | . . . . . 1 2 . 2 . . 3 . Impact Corruptions . | . . . . . . . . . . . . . Robots Melted 1 | . . . . . . . . . . 1 . . Combat Hostiles 1 | . . . . . . . . . . 1 . . Parts Melted 7 | 1 4 . . . . . 2 . . . . . Heat Transferred 7426 | 888 1036 . . . 222 531 703 1530 259 2109 148 . Parts Sabotaged . | . . . . . . . . . . . . . Parts Stolen . | . . . . . . . . . . . . . Parts Stripped . | . . . . . . . . . . . . . Power Chain Reactions 2 | . . . . . . 1 . 1 . . . . Latent Energy Used 303 | . . . . . . . . 103 . . 200 . LE Corruption 5 | . . . . . . . . 2 . . 3 . Alert | -11 -10 -10 -10 -9 -8 -8 -8 -8 -7 -7 -7 -7 ------- Run | Yrd Mat Min Exi Min Mat Gar Mat Gar Fac Was Fac Gar Maximum Alert Level 4 | . . . . . . 3 2 4 2 . 1 1 Low Security (%) 60 | 100 100 100 . 100 100 28 . . . 100 80 14 Level 1 14 | . . . . . . 27 78 7 . . 19 85 Level 2 15 | . . . . . . 41 21 31 100 . . . Level 3 6 | . . . . . . 2 . 38 . . . . Level 4 3 | . . . . . . . . 22 . . . . Level 5 . | . . . . . . . . . . . . . High Security . | . . . . . . . . . . . . . Max Security . | . . . . . . . . . . . . . Peak Influence 1219 | 5 110 65 . 50 51 724 419 1219 639 188 255 297 Initial 639 | . . 15 . . . 27 352 266 639 188 12 170 Average 244 | . 26 45 . 17 4 382 359 813 572 106 76 252 Influence Increases 3467 | 40 303 50 . 55 173 697 308 1013 120 . 475 233 Destroy 0b10 Robot/C 1680 | . 200 40 . 40 60 340 180 460 80 . 200 80 Destroy 0b10 Robot/NC 160 | 40 20 . . 5 35 5 10 20 . . 25 . Destroy Leader 272 | . 42 10 . 10 38 20 50 40 10 . 52 . Allied During Kill 9 | . . . . . . 1 5 . . . . 3 Trap Triggered on 0b10 10 | . . . . . . . . 10 . . . . Successful Hack 85 | . 9 . . . 9 21 . 28 . . 18 . Disable Machine 315 | . . . . . 15 60 30 90 . . 120 . Anti-Garrison Action 400 | . . . . . . 150 . 250 . . . . Destroy Structure 296 | . 2 . . . 1 100 33 100 . . 60 . Lose Combat Pursuer 240 | . 30 . . . 15 . . 15 30 . . 150 Influence Decreases 3234 | 40 264 54 35 55 131 15 622 204 800 521 250 243 Entered New Map 1600 | . . 24 35 . . 15 372 144 580 351 6 73 Time Decay 1254 | 40 234 30 . 55 131 . 230 . 170 170 194 . Lost Part 200 | . 30 . . . . . . 60 10 . 50 50 Lost Ally 180 | . . . . . . . 20 . 40 . . 120 Squads Dispatched 13 | . 4 . . . 6 . 1 . . . 2 . Investigation 3 | . 3 . . . . . . . . . . . Extermination 1 | . . . . . . . . . . . 1 . Reinforcement 9 | . 1 . . . 6 . 1 . . . 1 . Assault . | . . . . . . . . . . . . . Garrison . | . . . . . . . . . . . . . Intercept . | . . . . . . . . . . . . . Searches Triggered . | . . . . . . . . . . . . . Construction Impeded . | . . . . . . . . . . . . . Haulers Reinforced . | . . . . . . . . . . . . . Active Scanning Responses . | . . . . . . . . . . . . . Cargo Convoy Interrupts . | . . . . . . . . . . . . . Alert ID Control Effect 3 | . . . . . . . . . . . . 3 Stealth | -11 -10 -10 -10 -9 -8 -8 -8 -8 -7 -7 -7 -7 --------- Run | Yrd Mat Min Exi Min Mat Gar Mat Gar Fac Was Fac Gar Distress Signals 5 | . 1 . . . 3 . . . . . 1 . Communications Jammed . | . . . . . . . . . . . . . Distress Signals . | . . . . . . . . . . . . . Times Spotted 124 | . 12 3 . 2 6 10 11 28 7 7 19 19 Peak Tracking Total 10 | . 4 1 . 2 2 3 4 6 4 3 5 10 Tactical Retreats 8 | . 1 . . . 1 . . 1 1 1 . 3 Traps | -11 -10 -10 -10 -9 -8 -8 -8 -8 -7 -7 -7 -7 ------- Run | Yrd Mat Min Exi Min Mat Gar Mat Gar Fac Was Fac Gar Traps Triggered 8 | . 2 . . . 1 2 . 1 1 . . 1 Indirectly . | . . . . . . . . . . . . . Trap Hack Attempts . | . . . . . . . . . . . . . Triggered . | . . . . . . . . . . . . . Disarmed . | . . . . . . . . . . . . . Reprogrammed . | . . . . . . . . . . . . . Reused 1 | . . . . . . . . 1 . . . . Traps Extracted . | . . . . . . . . . . . . . Installed 3 | . . . . . . . . 3 . . . . Triggered 1 | . . . . . . . . 1 . . . . Most Traps Carried 4 | . . . . . . . . 4 . . . . Machines | -11 -10 -10 -10 -9 -8 -8 -8 -8 -7 -7 -7 -7 ---------- Run | Yrd Mat Min Exi Min Mat Gar Mat Gar Fac Was Fac Gar Machines Disabled 28 | . . . . . 1 7 2 10 . . 8 . Max in Single Turn 4 | . . . . . 1 1 1 1 . . 4 . Garrison Relay 7 | . . . . . . 3 . 4 . . . . Machines Repaired . | . . . . . . . . . . . . . Machines Dismantled . | . . . . . . . . . . . . . Machines Sabotaged . | . . . . . . . . . . . . . Overloaded Fab Kills . | . . . . . . . . . . . . . Hacking | -11 -10 -10 -10 -9 -8 -8 -8 -8 -7 -7 -7 -7 --------- Run | Yrd Mat Min Exi Min Mat Gar Mat Gar Fac Was Fac Gar Machines Accessed 17 | . 2 . 1 . 4 2 1 3 1 . 2 1 Terminals 12 | . 2 . . . 3 2 . 3 . . 1 1 Fabricators 1 | . . . . . . . . . 1 . . . Repair Stations . | . . . . . . . . . . . . . Recycling Units . | . . . . . . . . . . . . . Scanalyzers . | . . . . . . . . . . . . . Garrison Access 3 | . . . . . 1 . 1 . . . 1 . Total Hacks 32 | . 6 . 1 . 10 4 1 4 1 . 3 2 Successful 16 | . 3 . 1 . 4 2 1 2 1 . 2 . Failed 16 | . 3 . . . 6 2 . 2 . . 1 2 Catastrophic 4 | . . . . . . 1 . 2 . . . 1 Database Lockouts . | . . . . . . . . . . . . . Manual 11 | . 4 . 1 . 6 . . . . . . . Terminals 27 | . 6 . . . 9 4 . 4 . . 2 2 Fabricators 1 | . . . . . . . . . 1 . . . Repair Stations . | . . . . . . . . . . . . . Recycling Units . | . . . . . . . . . . . . . Scanalyzers . | . . . . . . . . . . . . . Garrison Access 3 | . . . . . 1 . 1 . . . 1 . Terminal Hacks 8 | . 1 . 1 . 1 2 . 2 . . 1 . Record 1 | . . . . . . . . . . . 1 . Open Door 1 | . . . . . . 1 . . . . . . Emergency Access Points 2 | . . . . . . 1 . 1 . . . . Zone Layout 2 | . 1 . . . 1 . . . . . . . Patrol Navigation 1 | . . . . . . . . 1 . . . . Proto ID Catalog 1 | . . . 1 . . . . . . . . . Fabricator Hacks 1 | . . . . . . . . . 1 . . . Network Status 1 | . . . . . . . . . 1 . . . Repair Station Hacks . | . . . . . . . . . . . . . Recycling Unit Hacks . | . . . . . . . . . . . . . Scanalyzer . | . . . . . . . . . . . . . Garrison Access Hacks 3 | . . . . . 1 . 1 . . . 1 . Unlock Access 3 | . . . . . 1 . 1 . . . 1 . Unauthorized Hacks 4 | . 2 . . . 2 . . . . . . . Terminals 4 | . 2 . . . 2 . . . . . . . Botnet 4 | . 2 . . . 2 . . . . . . . Fabricators . | . . . . . . . . . . . . . Repair Stations . | . . . . . . . . . . . . . Recycling Units . | . . . . . . . . . . . . . Scanalyzers . | . . . . . . . . . . . . . Garrison Access . | . . . . . . . . . . . . . Data Cores Recovered . | . . . . . . . . . . . . . Used . | . . . . . . . . . . . . . Hacking Detections 12 | . 1 . . . 3 2 1 2 . . 2 1 Full Trace Events 1 | . . . . . . . . 1 . . . . Feedback Events . | . . . . . . . . . . . . . Feedback Blocked . | . . . . . . . . . . . . . Robot Schematics Acquired . | . . . . . . . . . . . . . Robots Built . | . . . . . . . . . . . . . Authchips . | . . . . . . . . . . . . . Time . | . . . . . . . . . . . . . Total Robot Build Rating . | . . . . . . . . . . . . . Part Schematics Acquired . | . . . . . . . . . . . . . Parts Built . | . . . . . . . . . . . . . Authchips . | . . . . . . . . . . . . . Time . | . . . . . . . . . . . . . Total Part Build Rating . | . . . . . . . . . . . . . Parts Repaired . | . . . . . . . . . . . . . Time . | . . . . . . . . . . . . . Parts Recycled . | . . . . . . . . . . . . . Recycled Matter . | . . . . . . . . . . . . . Retrieved Matter . | . . . . . . . . . . . . . Retrieved Components . | . . . . . . . . . . . . . Parts Scanalyzed . | . . . . . . . . . . . . . Part Schematics Acquired . | . . . . . . . . . . . . . Parts Damaged . | . . . . . . . . . . . . . Bothacking | -11 -10 -10 -10 -9 -8 -8 -8 -8 -7 -7 -7 -7 ------------ Run | Yrd Mat Min Exi Min Mat Gar Mat Gar Fac Was Fac Gar Used RIF Installer 2 | . . . . . . 1 . 1 . . . . Alert ID Control 1 | . . . . . . . . 1 . . . . Robots Hacked 13 | . . . . . . . . . 4 6 . 3 Non-combat 2 | . . . . . . . . . 2 . . . Combat 11 | . . . . . . . . . 2 6 . 3 Robot Hacks Applied 14 | . . . . . . . . . 4 6 . 4 find_chute 1 | . . . . . . . . . 1 . . . ignore_targets 6 | . . . . . . . . . . 6 . . overwrite_iff 6 | . . . . . . . . . 2 . . 4 formatsys_low 1 | . . . . . . . . . 1 . . . Relay Couplers Released 29 | . . . . . . 11 . 18 . . . . Machine Destruction 29 | . . . . . . 11 . 18 . . . . Attached 4 | . . . . . . . . . 2 . 2 . Fabnet Peak Effective % . | . . . . . . . . . . . . . Robots Rewired . | . . . . . . . . . . . . . Allies Hacked . | . . . . . . . . . . . . . Hacks Repelled . | . . . . . . . . . . . . . Allies | -11 -10 -10 -10 -9 -8 -8 -8 -8 -7 -7 -7 -7 -------- Run | Yrd Mat Min Exi Min Mat Gar Mat Gar Fac Was Fac Gar Total Allies 11 | . . . . . . 1 . . 3 . . 7 Largest Group 1 | . . . . . . 1 1 . 1 . . 1 Highest-Rated Group 32 | . . . . . . 31 31 . 23 . . 32 Highest-Rated Ally 32 | . . . . . . 31 31 . 23 . . 32 Total Orders . | . . . . . . . . . . . . . Ally Attacks 59 | . . . . . . 4 8 . 8 . . 39 Total Damage 891 | . . . . . . 82 102 . 74 . . 633 Kills 9 | . . . . . . 1 1 . . . . 7 Allies Corrupted . | . . . . . . . . . . . . . Allies Melted . | . . . . . . . . . . . . . Field Lobotomies 4 | . . . . . . . . . . . . 4 Intel | -11 -10 -10 -10 -9 -8 -8 -8 -8 -7 -7 -7 -7 ------- Run | Yrd Mat Min Exi Min Mat Gar Mat Gar Fac Was Fac Gar Active Infowar (turns) 1070 | 98 528 . . 43 375 . . . . . 26 . Optics 375 | . . . . . 375 . . . . . . . Sensors 26 | . . . . . . . . . . . 26 . Terrain 8 | 8 . . . . . . . . . . . . Seismic 661 | 90 528 . . 43 . . . . . . . . Robot Analysis Total . | . . . . . . . . . . . . . Derelict Logs Recovered 1 | . . . . 1 . . . . . . . . Drone Launches . | . . . . . . . . . . . . . Drone Recoveries . | . . . . . . . . . . . . . Exploration | -11 -10 -10 -10 -9 -8 -8 -8 -8 -7 -7 -7 -7 ------------- Run | Yrd Mat Min Exi Min Mat Gar Mat Gar Fac Was Fac Gar Turns Passed 8284 | 303 1010 67 359 152 1734 1063 499 1158 342 344 1021 232 Spaces Moved 4031 | 132 442 31 221 70 841 544 238 569 153 118 495 177 Core 64 | 5 . . . . . . . . . . 4 55 Treads 3800 | 127 442 31 211 70 841 544 238 569 153 118 456 . Legs 10 | . . . 10 . . . . . . . . . Wheels . | . . . . . . . . . . . . . Hover . | . . . . . . . . . . . . . Flight 157 | . . . . . . . . . . . 35 122 Fastest Speed 32 | 50 160 160 90 160 160 160 156 155 156 155 32 32 Average Speed 156 | 155 175 160 156 160 160 160 158 157 156 158 165 39 Slowest Speed 240 | 160 240 160 160 160 160 160 160 240 160 240 240 150 Overloaded Moves . | . . . . . . . . . . . . . Propulsion Burnouts . | . . . . . . . . . . . . . Robots Hopped . | . . . . . . . . . . . . . Potential Cave-ins . | . . . . . . . . . . . . . Cave-ins Triggered . | . . . . . . . . . . . . . Exploration Rate (%) 40 | 7 65 7 60 24 66 64 36 66 5 77 18 30 Regions Visited 12 Branch Regions 3 Pre-discovered Areas . | . . . . . . . . . . . . . Known Exits Taken 3 | . . . . . 1 . 1 . . . 1 . Unknown Exits Taken 5 | 1 1 1 1 1 . . . . . . . . Scrap Searched . | . . . . . . . . . . . . . Spaces Dug 9 | . . . . . . 7 2 . . . . . Terrain Destroyed 178 | . . . . . . 39 38 35 . . 66 . Melee . | . . . . . . . . . . . . . Projectile 8 | . . . . . . 2 5 1 . . . . AOE 170 | . . . . . . 37 33 34 . . 66 . Terrain Rammed . | . . . . . . . . . . . . . Walls Destroyed . | . . . . . . . . . . . . . Machines Disabled . | . . . . . . . . . . . . . Actions | -11 -10 -10 -10 -9 -8 -8 -8 -8 -7 -7 -7 -7 --------- Run | Yrd Mat Min Exi Min Mat Gar Mat Gar Fac Was Fac Gar Total 5474 | 190 612 37 236 95 1184 672 322 724 230 208 633 331 Wait 659 | 4 77 . . 13 253 58 34 34 38 3 19 126 Move 4023 | 131 441 30 220 69 841 543 238 568 153 117 495 177 Hop . | . . . . . . . . . . . . . Pick Up 106 | 16 24 . 5 . 18 2 5 10 6 3 17 . Fast Attach 17 | . 2 . 1 . 7 . 3 . . 2 2 . Attach 46 | 7 2 . 3 . 4 . . 7 3 2 12 6 Detach 8 | . . . . . . . . 1 . . 2 5 Swap 79 | 1 6 . 1 3 10 8 7 19 9 3 11 1 Drop 97 | 1 19 . 6 1 21 2 8 3 3 7 26 . Fire 422 | 30 41 7 . 9 30 59 27 79 15 71 49 5 Melee 13 | . . . . . . . . . 3 . . 10 Ram 1 | . . . . . . . . . . . . 1 Kick . | . . . . . . . . . . . . . Crush . | . . . . . . . . . . . . . Escape Stasis . | . . . . . . . . . . . . . Rewire . | . . . . . . . . . . . . . Trap 3 | . . . . . . . . 3 . . . . Miscellaneous . | . . . . . . . . . . . . . Route ------- -11/Scrapyard -10/Materials (discovered 3 exits: [*Mat x2] / [*Min]) -10/Mines -10/Exiles -9/Mines -8/Materials (discovered 4 exits: *Fac x3 / Gar) -8/Garrison (discovered 2 exits: *Mat x2) -8/Materials (discovered 2 exits: *Fac / Gar) -8/Garrison (discovered 2 exits: *Fac x2) -7/Factory -7/Waste -7/Factory -7/Garrison History --------- Turn | Location | Event 12 | -11/Scrapyard | Discovered new exit (range 16) 304 | -11/Scrapyard | Entered Materials 305 | -10/Materials | Met a group of wandering Federalists 335 | -10/Materials | Build established: Mutant 888 | -10/Materials | Discovered new exit (range 6) 1008 | -10/Materials | Discovered new exit (range 6) 1189 | -10/Materials | Discovered new exit (range 13) 1314 | -10/Materials | Entered Mines 1318 | -10/Mines | Met a Derelict bent on vengeance 1373 | -10/Mines | Deemed a non-threat by the Exiles lab entrance 1374 | -10/Mines | Discovered new exit (range 5) 1381 | -10/Mines | Entered Exiles 1425 | -10/Exiles | Met 8R-AWN 1447 | -10/Exiles | Met EX-HEX 1492 | -10/Exiles | Met EX-BIN 1511 | -10/Exiles | Aligned with FarCom system 1513 | -10/Exiles | Given EX-Vault access code 1549 | -10/Exiles | Opened EX-Vault 1562 | -10/Exiles | Found Potential Leg 1566 | -10/Exiles | Found Potential Leg 1576 | -10/Exiles | Found Latent Energy Streamer 1584 | -10/Exiles | Found Field Lobotomy Kit 1622 | -10/Exiles | Warned to stay clear of 0b10 Research branches 1670 | -10/Exiles | Met EX-DEC 1723 | -10/Exiles | Discovered new exit (range 14) 1740 | -10/Exiles | Stole two prototypes: Latent Energy Streamer, Field Lobotomy Kit 1740 | -10/Exiles | Entered Mines 1746 | -9/Mines | Core integrity fell below 50% 1810 | -9/Mines | Learned location of 1 exit from Materials 1850 | -9/Mines | Discovered new exit (range 13) 1892 | -9/Mines | Entered Materials 1892 | -8/Materials | Evolved 4 slots: Propulsion x2, Utility x2 1893 | -8/Materials | Identified exit to Factory 2085 | -8/Materials | Discovered exit to Factory (range 12) 2926 | -8/Materials | Met 7R-MNS 3615 | -8/Materials | Discovered exit to Factory (range 11) 3626 | -8/Materials | Identified exit to Garrison 3626 | -8/Materials | Entered Garrison 3805 | -8/Garrison | Triggered checkpoint 3927 | -8/Garrison | Triggered checkpoint 4054 | -8/Garrison | Garrison Relay disabled 4090 | -8/Garrison | Discovered new exit (range 15) 4231 | -8/Garrison | Triggered checkpoint 4423 | -8/Garrison | Discovered new exit (range 13) 4450 | -8/Garrison | Triggered checkpoint 4518 | -8/Garrison | Garrison Relay disabled 4600 | -8/Garrison | Rescued a captive Derelict 4669 | -8/Garrison | Installed Relay Interface Framework 4689 | -8/Garrison | Entered Materials 4689 | -8/Materials | Accompanied by 1 ally 4936 | -8/Materials | Discovered exit to Factory (range 8) 5188 | -8/Materials | Identified exit to Garrison 5188 | -8/Materials | Entered Garrison 5206 | -8/Garrison | Garrison Relay disabled 5252 | -8/Garrison | Triggered checkpoint 5372 | -8/Garrison | Garrison Relay disabled 5626 | -8/Garrison | Triggered checkpoint 5632 | -8/Garrison | Triggered checkpoint 5660 | -8/Garrison | Destroyed 7 combat bots 5765 | -8/Garrison | Discovered exit to Factory (range 15) 5814 | -8/Garrison | Triggered checkpoint 5871 | -8/Garrison | Garrison Relay disabled 5916 | -8/Garrison | Triggered checkpoint 6021 | -8/Garrison | Lost 4 parts (1p2n1u) 6082 | -8/Garrison | Discovered exit to Factory (range 15) 6178 | -8/Garrison | Triggered checkpoint 6249 | -8/Garrison | Expanded RIF knowledge: Alert ID Control 6273 | -8/Garrison | Garrison Relay disabled 6346 | -8/Garrison | Entered Factory 6346 | -7/Factory | Evolved 2 slots: Power x1, Utility x1 6348 | -7/Factory | FarCom data flow suspended 6594 | -7/Factory | Build established: Bothacker-Mutant 6688 | -7/Factory | Sucked down chute 6688 | -7/Factory | Entered Waste 6696 | -7/Waste | Spotted C-40 Crusher 6701 | -7/Waste | Spotted C-40 Crusher 6703 | -7/Waste | EMP discharged 6703 | -7/Waste | System corruption reached 10% 6708 | -7/Waste | Spotted C-40 Crusher 6725 | -7/Waste | Spotted C-40 Crusher 6734 | -7/Waste | Spotted C-40 Crusher 6755 | -7/Waste | Spotted C-40 Crusher 6803 | -7/Waste | EMP discharged 6891 | -7/Waste | Destroyed C-40 Crusher 6903 | -7/Waste | EMP discharged 6903 | -7/Waste | System corruption reached 30% 6915 | -7/Waste | Destroyed C-40 Crusher 6921 | -7/Waste | Build established: Mutant 7003 | -7/Waste | EMP discharged 7017 | -7/Waste | Discovered new exit (range 10) 7032 | -7/Waste | Entered Factory 7226 | -7/Factory | Build established: Scavenger-Mutant 7693 | -7/Factory | Lost 3 parts (2u1w) 8053 | -7/Factory | Identified exit to Garrison 8053 | -7/Factory | Entered Garrison 8069 | -7/Garrison | Triggered checkpoint 8116 | -7/Garrison | Assimilated Y-54 Guardian with FLK Orb 8213 | -7/Garrison | Assimilated G-50 Soldier with FLK Orb 8239 | -7/Garrison | Triggered checkpoint 8243 | -7/Garrison | Triggered checkpoint 8265 | -7/Garrison | Core integrity fell below 50% 8268 | -7/Garrison | Assimilated G-47 Trooper with FLK Orb 8271 | -7/Garrison | Assimilated G-47 Trooper with FLK Orb 8277 | -7/Garrison | Core integrity fell below 20% 8285 | -7/Garrison | Destroyed by S-27 Virus with Autogun Last Messages --------------- 08216_ Jacked Soldier 4a... 08222_ G-47 Trooper destroyed. 08224_ System corrupted: Matter fused (-7). 08225_ Acquired 27 matter. 08239_ Beams of light sweep through the air. An alarm sounds. 08239_ System corrupted: Component data lost. 08241_ VTOL Module destroyed. 08243_ Beams of light sweep through the air. An alarm sounds. 08261_ %NVGNNPYONS9VPVT 1D,2DZAM 08262_ Relay Coupler [Grunt] destroyed. Garrison Door activated. 08266_ Adv. Targeting Computer destroyed. 08268_ G-47 Trooper assimilated. 08271_ Relay Coupler [NC] destroyed. 08274_ Trooper 4a destroyed. 08275_ S-27 Virus destroyed. 08276_ TG1YPJ6GDEPCV5B OJG#YQ<6:G0U>%X 08282_ Field Lobotomy Kit expended. Map ----- +----------------------------------------------------+ | ?????????????????????????????????????????????????? | | ?????????????????????????????????????????????????? | | ?????????????????????????????????????????????????? | | ?????????????????????????????????????????????????? | | ?????????????????????????????????????????????????? | | ?????????????????????????????????????????????????? | | ?????????????????????????????????????????????????? | | ?????????????????????????????????????????????????? | | ?????????????????????????????????????????????????? | | ?????????????????????????????????????????????????? | | ?????????????????????????????????????????????????? | | ?????????????????????????????????????????????????? | | ?????????????????????????????????????????????????? | | ?????????????????????????????????????????????????? | | ?????????????????????????????????????????????????? | | ?????????????????????????????????????????????????? | | ?????????????????????????????????????????????????? | | ?????????????????????????????????????????????????? | | ?????????????????????????????????????????????????? | | ?????????????????????????????????????????????????? | | ?????????????????????????????????????????????????? | | ?????????????????????????????????????????????????? | | ????????????????###????#######???????????????????? | | ????????????????# ???#"""""#???????????????????? | | ????????????#####*%%#####s ##???????????????????? | | ????????????# =%*= gs@ #???????????????????? | | ????????????# = s #???????????????????? | | ????????????# ############++#???????????????????? | | ????????????# #?????????????????????????????????? | | ????????????# #?????????????????????????????????? | | ??########### #####################?????????????? | | #?????????????? | | #?????????????? | | #?????????????? | | ################################ #?????????????? | | ???????????????????????????????# #?????????????? | | ???????????????????????????????# #??????????#??? | | ???????????????????????????????# #????????? #??? | | ???????????????????????????????# #?#####?? #??? | | ???????????????????????????????# #? #? #??? | | ???????????????????????????????# ## ## #??? | | ???????????????????????????????# #??? | | ???????????????????????????????# #??? | | ???????????????????????????????# #??? | | ???????????????????????????????# ## ## #??? | | ???????????????????????????????# ## ## #??? | | ???????????????????????????????" "??? | | ???????????????????????????????" "??? | | ???????????????????????????????" "??? | | ???????????????????????????????" "??? | +----------------------------------------------------+ Best States ------------- Heat Dissipation 48 Energy Generation 34 Energy Capacity 535 Matter Stores 300 Matter Capacity 300 Sight Range 20 Robot Scan Range 15 Terrain Scan Range 16 Terrain Scan Density 10 Armor Coverage 600 Evasion (%) 63 Targeting Accuracy 8 Recoil Reduction 4 Particle Charging 15 Relay Coupler Types 2 Relay Coupler Value 63 Trap Extractor Capacity 4 Item Schematics ----------------- None Robot Schematics ------------------ None Fabricated ------------ Nothing Repaired ---------- Nothing Alien Tech Used ----------------- None Achievements -------------- None Challenges ------------ None Game ------ Seed InertialSensorRedirector Manual? 0 Play Time 01:41:49 Cumulative 45.0 hours Start 2025.05.17 @ 11:24:46 End 2025.05.19 @ 22:18:42 Sessions 5 Manual Loads 0 Difficulty Rogue Special Mode None Game No. 29 Rogue 29 Adventurer 0 Explorer 0 Win Type - Total 0 Types 0/0/0/0/0/0/0/0/0/0 Lore% 11 Gallery% 30 Achievement% 35 Wizard Run 0 Options --------- Layout 1 ASCII 0 Keyboard 0 Movement Mouse Keybinds 0 Fullscreen 1 Font 32/SmallcapsGlow Map View 50x35 Zoom Use 0% Tactical HUD 1 Map Filters NONE Filters NONE Steam 1 RUN: 4d01adbb-5829-4e61-acbe-c1b285f6e807